[Event "34th MPL National U14-ch 2022"]
[Site "Ahmedabad"]
[Date "2022.05.09"]
[Round "1.1"]
[White "Kadam Om Manish"]
[Black "Divesh G"]
[Result "1-0"]
[ECO "B10"]
[WhiteElo "2144"]
[BlackElo "1303"]
[Annotator "TA"]
[PlyCount "83"]
[EventDate "2022.05.09"]
[EventType "swiss"]
[EventCountry "IND"]
[SourceTitle "playchess.com"]
[Source "ChessBase"]
[SourceQuality "1"]
[TimeControl "5400+30"]

{[%evp 10,82,15,5,17,2,5,6,15,6,22,26,34,35,21,36,30,22,38,0,76,60,179,142,152,114,122,135,154,166,164,164,195,205,197,200,189,203,205,194,339,350,336,340,355,350,353,337,431,406,495,516,693,679,809,771,937,683,677,672,752,761,729,715,739,708,1229,571,5498,5514,29987,29988,29997,29998,29999]} 1. e4 {[%emt 0:00:02]} c6 {[%emt 0:00:02]} 2. c4 {[%emt 0:00:16]} d5 {[%emt 0:00:06]} 3. exd5 {[%emt 0:00:09]} cxd5 {[%emt 0:00:06]} 4. cxd5 {[%emt 0:00:07]} Nf6 {[%emt 0:00:12]} 5. Nc3 {[%emt 0:00:06]} Nxd5 {[%emt 0:00:05]} 6. Nf3 {[%emt 0:00:10]} g6 {[%emt 0:02:34] B10: Caro-Kann: 2 d3 and 2 c4.} 7. Qb3 {[%emt 0:00:14]} Nb6 {[%emt 0:03:54]} 8. Bb5+ {[%emt 0:01:48]} Bd7 {[%emt 0:00:32] [#] The position is equal.} 9. Bxd7+ $146 {[%emt 0:11:49]} (9. a4 {is more complex.} Bg7 10. a5 Nc8 11. d4) ({Predecessor:} 9. Ne5 e6 10. Ne4 Bc6 11. d3 Qd4 12. Nf6+ Ke7 13. Nfg4 Bxb5 14. Bg5+ Kd6 15. Nxf7+ {0-1 (36) Riehle,M (2336)-Svane,R (2615) Magdeburg 2021}) 9... N8xd7 {[%emt 0:00:33]} 10. a4 {[%emt 0:00:04]} a5 {[%emt 0:04:59]} 11. O-O $40 {[%emt 0:01:17][%mdl 128] White has some attack.} Bg7 {[%emt 0:00:22]} 12. d4 {[%emt 0:00:16]} O-O {[%emt 0:00:19]} 13. Re1 {[%emt 0:00:27]} h6 {[%emt 0:11:23]} 14. Ne5 {[%emt 0:02:09] [#] Hoping for Nxg6.} Nxe5 {[%emt 0:00:31]} (14... e6 $1 $11 {remains equal.}) 15. dxe5 $16 {[%emt 0:00:04] Black must now prevent Be3.} Kh7 {[%emt 0:01:01] White stays focused until the end.} (15... Rc8 $14) 16. Be3 {[%emt 0:00:39]} Nd7 {[%emt 0:01:55]} 17. Rad1 {[%emt 0:00:40][%cal Ba1d1,Bd1d7,Bd7e7][%mdl 32]} (17. Qxb7 Rb8 18. Qd5 Nxe5 $11) 17... Qc8 {[%emt 0:01:39]} 18. f4 {[%emt 0:01:15] 0x0.000617433337dp-1022s more active pieces.} Nc5 {[%emt 0:02:40]} 19. Qb5 {[%emt 0:00:25]} Ne6 {[%emt 0:00:50]} 20. Nd5 {[%emt 0:06:31]} Nc7 {[%emt 0:03:51]} 21. Nxc7 {[%emt 0:01:41]} (21. Nxe7 $6 Nxb5 22. Nxc8 Raxc8) 21... Qxc7 {[%emt 0:01:39]} 22. Rd7 {[%emt 0:03:51]} Qc2 {[%emt 0:02:42]} 23. Rxe7 {[%emt 0:00:55]} Rad8 {[%emt 0:01:03]} 24. h3 {[%emt 0:02:57]} (24. Qxb7 Rb8 25. Qc7 Qe4) (24. Qxa5 Rd1 25. Bf2 (25. Rxb7 $2 Rfd8 $19) 25... Rfd8 $11) 24... Rd1 {[%emt 0:10:56]} (24... b6 $142 25. Ra7 (25. Bxb6 Rd2 $16) (25. Qxb6 Qxa4 26. b3 Qb4 $18) 25... Rb8) 25. Rxd1 $18 {[%emt 0:00:11]} ({Not} 25. Qxa5 $2 {[#]} Ra8 $3 {[%mdl 512]} 26. Qxa8 (26. Qb4 $2 Rxa4 27. Qc3 Qxc3 $19) 26... Rxe1+ 27. Kh2 Rxe3 $19) 25... Qxd1+ {[%emt 0:00:06]} 26. Kh2 {[%emt 0:00:09]} Qe1 {[%emt 0:00:41]} 27. Qb3 {[%emt 0:00:29]} ({And not} 27. Qxb7 Qxe3 28. Rxf7 Kh8 $11) 27... h5 {[%emt 0:01:48]} 28. Qc3 {[%emt 0:00:10]} ({Don't do} 28. Rxb7 h4 29. Qd3 Bh6 $18) 28... Qf1 {[%emt 0:01:03]} 29. Qxa5 {[%emt 0:01:14]} h4 {[%emt 0:13:50]} 30. Qd2 {[%emt 0:03:07]} Bh6 {[%emt 0:03:39]} 31. e6 {[%emt 0:00:38]} Qc4 {[%emt 0:04:14]} 32. a5 {[%emt 0:03:05]} Kg8 {[%emt 0:02:34]} 33. exf7+ {[%emt 0:01:27]} Rxf7 {[%emt 0:00:10]} 34. Qd8+ {[%emt 0:00:02]} Kh7 {[%emt 0:00:17]} 35. Rxf7+ {[%emt 0:00:03]} Qxf7 {[%emt 0:00:15]} 36. Qxh4 {[%emt 0:00:03][%cal Of4f5][%mdl 4096] Endgame Threatens to win with f5! KQB-KQB} Qe6 {[%emt 0:00:56]} 37. Bd4 {[%emt 0:01:36]} Qe4 {[%emt 0:00:58]} 38. Be5 {[%emt 0:00:20] White wants to mate with Qe7+.} g5 {[%emt 0:01:01]} 39. Qg4 {[%emt 0:00:05] White threatens Qd7+ and mate.} gxf4 {[%emt 0:01:30]} 40. Qd7+ {[%emt 0:00:11] White mates.} Kg6 {[%emt 0:00:56]} 41. Qe6+ {[%emt 0:00:06]} Kh5 {[%emt 0:00:37]} 42. Qg4# {[%emt 0:00:04] Weighted Error Value: White=0.13 (very precise) /Black=0.41} 1-0

[Event "34th MPL National U14-ch 2022"]
[Site "Ahmedabad"]
[Date "2022.05.09"]
[Round "1.2"]
[White "Medhvansh Madeti"]
[Black "Md Imran"]
[Result "0-1"]
[ECO "B23"]
[WhiteElo "1302"]
[BlackElo "2122"]
[Annotator "TA"]
[PlyCount "118"]
[EventDate "2022.05.09"]
[EventType "swiss"]
[EventCountry "IND"]
[SourceTitle "playchess.com"]
[Source "ChessBase"]
[SourceQuality "1"]
[TimeControl "5400+30"]

{[%evp 9,118,0,1,-43,-45,-37,-15,-12,-16,-19,1,-22,-14,-30,0,0,0,-130,-143,-145,-144,-142,-127,-138,-116,-191,-108,-116,-80,-135,-109,-252,-253,-255,-246,-692,-695,-1304,-1269,-1149,-931,-960,-551,-520,-392,-504,-504,-504,-504,-489,0,0,0,0,0,0,0,0,0,0,0,-198,-189,-198,-142,-273,-289,-272,-262,-373,-365,-375,-374,-376,-362,-413,-412,-750,-648,-643,-576,-618,-613,-566,-547,-520,-513,-883,-809,-856,-830,-1975,-1992,-2170,-1808,-1876,-1649,-5056,-4960,-29986,-29987,-29987,-29988,-29988,-29989,-29989,-29989,-29991,-29991,-29991,-29992]} 1. e4 {[%emt 0:00:02]} c5 {[%emt 0:00:10]} 2. Nc3 {[%emt 0:00:05]} Nc6 {[%emt 0:00:14]} 3. f4 {[%emt 0:00:07]} e6 {[%emt 0:00:07]} 4. Nf3 {[%emt 0:00:11]} Nge7 {[%emt 0:00:03]} 5. Be2 {[%emt 0:01:23]} d5 {[%emt 0:00:14]} 6. e5 {[%emt 0:01:29] B23: Closed Sicilian: Lines without g3.} Nf5 {[%emt 0:00:19]} 7. O-O {[%emt 0:01:41]} h5 {[%emt 0:00:02]} 8. Bd3 {[%emt 0:02:06] The position is equal.} Nce7 {[%emt 0:01:23]} 9. b3 {[%emt 0:01:18] Against c4} h4 {[%emt 0:00:21]} 10. Ba3 {[%emt 0:03:07]} Qa5 {[%emt 0:01:24]} 11. Qc1 {[%emt 0:02:09]} Bd7 {[%emt 0:00:11]} 12. Rb1 {[%emt 0:02:58] [#]} Qc7 $146 {[%emt 0:05:15]} ({Predecessor:} 12... b5 13. Bxc5 b4 14. Bxe7 Qb6+ 15. Rf2 Bxe7 16. Bxf5 bxc3 17. Bh3 cxd2 18. Qxd2 Bc5 {½-½ (78) Kutlu,S (1824)-Erkole,M (1619) Konya 2017}) 13. Nb5 {[%emt 0:04:59]} (13. Qe1 $11) 13... Qb6 $17 {[%emt 0:00:33] [#] White must now prevent ...c4+.} 14. Nd6+ {[%emt 0:04:57]} Nxd6 {[%emt 0:00:15]} 15. exd6 {[%emt 0:00:02]} Nc6 {[%emt 0:01:58]} (15... Qxd6 16. Qe1 $15) 16. c4 {[%emt 0:04:57]} Bxd6 {[%emt 0:00:47]} 17. Kh1 {[%emt 0:01:43]} (17. Qb2 $17) 17... Nb4 {[%emt 0:01:36]} (17... O-O-O $19 18. Be2 Kb8) 18. Bxb4 {[%emt 0:01:44]} cxb4 {[%emt 0:01:48]} 19. Qb2 {[%emt 0:02:05]} ({Better is} 19. cxd5 exd5 20. Qe1+ Kf8 21. Ne5) 19... h3 {[%emt 0:02:36]} 20. Qxg7 {[%emt 0:03:28]} (20. g3 $17) 20... hxg2+ $19 {[%emt 0:00:08]} 21. Kxg2 {[%emt 0:06:02]} O-O-O {[%emt 0:00:19]} 22. Ng5 $2 {[%emt 0:08:56]} (22. c5 Rdg8 23. cxb6 Rxg7+ 24. Kh1) 22... dxc4 {[%emt 0:01:21]} 23. Bxc4 {[%emt 0:09:02]} Rdg8 {[%emt 0:01:00]} 24. Qf6 {[%emt 0:01:02]} Bc6+ {[%emt 0:00:06]} 25. Kg3 {[%emt 0:00:51]} Qc5 {[%emt 0:02:06]} 26. h4 {[%emt 0:02:59]} Be7 {[%emt 0:00:02] A strong pair of Bishops.} (26... b5 27. d4 Qb6 28. Be2 $17) 27. Qxf7 {[%emt 0:00:59]} Bxg5 {[%emt 0:00:54]} 28. Bxe6+ {[%emt 0:01:57]} Kb8 {[%emt 0:00:07]} 29. hxg5 {[%emt 0:03:58] [#] Strongly threatening Qf5.} Rd8 $2 {[%emt 0:03:23]} (29... Qd4 $19 {( -> ...Qd3+)} 30. Qxg8+ Rxg8 31. Bxg8 Qd3+ 32. Kh4 Bg2) 30. Qf5 $11 {[%emt 0:04:01]} Rxd2 $40 {[%emt 0:02:00][%csl Gc6][%cal Rd2g2][%mdl 128] Black has some attack.} 31. Qe5+ {[%emt 0:03:49]} (31. Qxc5 $2 Rg2#) 31... Qxe5 {[%emt 0:00:06] Chess con chili.} 32. fxe5 {[%emt 0:00:08]} Rg2+ {[%emt 0:00:06]} 33. Kf4 {[%emt 0:00:35]} Rf8+ {[%emt 0:00:52]} 34. Ke3 {[%emt 0:02:29]} Rg3+ {[%emt 0:00:01]} 35. Ke2 $2 {[%emt 0:04:56] Black continues to play with concentration.} (35. Kd4 $11 {and White has nothing to worry.} Re8 36. Rf6) 35... Re8 $19 {[%emt 0:00:37]} 36. Bc4 {[%emt 0:08:43]} Rxe5+ {[%emt 0:00:17]} (36... b5 $19 37. Bf7 (37. Rf6 $2 Rxe5+ 38. Kf2 Rg2+ 39. Kf1 bxc4 $19) 37... Rxe5+ 38. Kd2 Rg2+ 39. Kd3 Rg3+ 40. Kd2 Rg2+ 41. Kd3 Rexg5) 37. Kd2 {[%emt 0:00:45]} (37. Kd1 $17) 37... Rg2+ {[%emt 0:00:14][%cal Bg3g2,Bg2a2,Ba2d2][%mdl 32]} ({And not} 37... Rexg5 38. Rf2 $17) 38. Kd3 {[%emt 0:01:26]} Rexg5 {[%emt 0:00:48]} 39. Rf8+ {[%emt 0:01:03]} (39. Rbe1 $142) 39... Kc7 {[%emt 0:00:03]} 40. Re1 {[%emt 0:02:33]} Rxa2 {[%emt 0:01:17]} 41. Rf7+ {[%emt 0:03:14]} Kb6 {[%emt 0:00:08]} 42. Rf6 {[%emt 0:00:31]} a5 {[%emt 0:00:11] Hoping for ...a4.} 43. Re7 {[%emt 0:00:45]} (43. Ref1 $142) 43... Rg3+ {[%emt 0:00:25]} 44. Re3 {[%emt 0:00:20]} Rgg2 {[%emt 0:00:02][%csl Gg2][%cal Ra2d2]} 45. Kd4 {[%emt 0:00:33]} Rad2+ {[%emt 0:00:10]} 46. Ke5 {[%emt 0:00:22]} Rg5+ {[%emt 0:00:07]} 47. Kf4 {[%emt 0:00:53]} Rc5 {[%emt 0:00:04]} 48. Rfe6 {[%emt 0:00:24]} (48. Be2 $142 Rd4+ 49. Kg3) 48... a4 {[%emt 0:00:13][%cal Ba5a4,Ba4a3,Ba3a2][%mdl 32] ...Rd4+ is the strong threat.} 49. R3e5 {[%emt 0:00:32]} a3 {[%emt 0:00:30]} 50. Rxc5 {[%emt 0:00:16]} Kxc5 {[%emt 0:00:05][%mdl 4096] Endgame KRB-KRB} 51. Re5+ {[%emt 0:00:31]} Kd4 {[%emt 0:00:01]} 52. Re1 {[%emt 0:00:46]} a2 {[%emt 0:00:02] aiming for ...Kc3.} 53. Rc1 {[%emt 0:00:28]} Be4 {[%emt 0:00:03]} 54. Bd3 {[%emt 0:00:38] Inhibits Bb1.} Bxd3 {[%emt 0:00:08] Black mates.} 55. Ra1 {[%emt 0:00:26]} Bb1 {[%emt 0:00:02]} 56. Kf3 {[%emt 0:00:16]} Kc3 {[%emt 0:00:19]} 57. Ke3 {[%emt 0:00:08]} Rd3+ {[%emt 0:00:06]} 58. Ke2 {[%emt 0:00:06]} Kb2 {[%emt 0:00:01]} 59. Rxa2+ {[%emt 0:00:30]} Kxa2 {[%emt 0:00:09] Weighted Error Value: White=0.75/Black=0.37} 0-1

[Event "34th MPL National U14-ch 2022"]
[Site "Ahmedabad"]
[Date "2022.05.09"]
[Round "1.3"]
[White "Ilamparthi A R"]
[Black "Pranay Akula"]
[Result "1-0"]
[ECO "D78"]
[WhiteElo "2121"]
[BlackElo "1300"]
[Annotator "TA"]
[PlyCount "119"]
[EventDate "2022.05.09"]
[EventType "swiss"]
[EventCountry "IND"]
[SourceTitle "playchess.com"]
[Source "ChessBase"]
[SourceQuality "1"]
[TimeControl "5400+30"]

{[%evp 14,118,50,17,30,16,26,39,22,20,31,35,34,27,32,28,38,24,33,29,52,65,66,69,65,64,67,57,61,0,0,0,42,38,59,39,54,37,393,381,620,621,610,605,568,583,566,432,714,681,2835,3298,1593,2801,1897,1901,1771,1873,1680,1681,1088,1314,1152,1148,1541,1295,5620,5525,5282,4133,6087,5842,5237,2525,29979,29981,29981,29982,29982,29982,29982,29983,29983,29984,29984,29983,29988,29984,29993,29986,29991,29992,29992,29993,29994,29994,29994,29995,29995,29996,29996,29997,29997,29998,29998,29999,29999]} 1. Nf3 {[%emt 0:00:13]} Nf6 {[%emt 0:03:38]} 2. g3 {[%emt 0:00:41]} g6 {[%emt 0:00:06]} 3. c4 {[%emt 0:00:47]} c6 {[%emt 0:02:38]} 4. Bg2 {[%emt 0:01:19]} Bg7 {[%emt 0:00:09]} 5. O-O {[%emt 0:00:38]} O-O {[%emt 0:00:05]} 6. Nc3 {[%emt 0:01:12]} d5 {[%emt 0:00:11]} 7. d4 {[%emt 0:01:30]} Nbd7 {[%emt 0:09:36]} 8. b3 {[%emt 0:05:16]} b6 {[%emt 0:34:05] D78: Fianchetto Grünfeld: 6 0-0 c6.} 9. Bb2 {[%emt 0:08:02]} Bb7 {[%emt 0:00:23]} 10. Qc2 {[%emt 0:00:10]} Rc8 {[%emt 0:02:36] White is slightly better.} 11. e4 {[%emt 0:02:28]} Nxe4 {[%emt 0:05:42]} 12. Nxe4 {[%emt 0:00:18]} dxe4 {[%emt 0:00:03]} 13. Qxe4 {[%emt 0:00:40]} e6 {[%emt 0:00:49]} 14. Rad1 {[%emt 0:04:39]} Qc7 {[%emt 0:01:15]} 15. Qe2 {[%emt 0:00:26]} Rfe8 {[%emt 0:02:47]} 16. Rfe1 {[%emt 0:07:14] [#]} a5 $146 {[%emt 0:06:52]} ({Predecessor:} 16... Rcd8 17. h4 Qc8 18. Qc2 c5 19. dxc5 Bxb2 20. Qxb2 Bxf3 21. Bxf3 Qxc5 22. h5 Nb8 {1-0 (53) Donchenko,A (2607)-Zysk,R (2404) Germany 2018}) 17. h4 {[%emt 0:01:44]} Rcd8 {[%emt 0:06:06]} 18. h5 {[%emt 0:01:34]} Nf6 {[%emt 0:02:59][%cal Bd7f6,Bf6d5,Bd5c3][%mdl 32]} 19. hxg6 {[%emt 0:03:27]} hxg6 {[%emt 0:00:09]} 20. c5 {[%emt 0:05:08]} Nd5 {[%emt 0:04:53]} 21. Ng5 {[%emt 0:03:10]} (21. Ne5 $14) 21... bxc5 $1 $11 {[%emt 0:11:35]} 22. dxc5 {[%emt 0:00:13]} Nc3 {[%emt 0:01:11]} (22... Ba6 $5 23. Qxa6 Bxb2 $11) 23. Bxc3 {[%emt 0:01:59]} Bxc3 {[%emt 0:00:10]} 24. Rf1 {[%emt 0:00:25]} Bd4 {[%emt 0:03:07]} 25. Ne4 {[%emt 0:01:41][%cal Od1d4]} f5 $2 {[%emt 0:01:16][%mdl 8192] This costs Black the game.} ({Black should play} 25... Re7 $14) 26. Rxd4 $18 {[%emt 0:02:39]} Rxd4 $2 {[%emt 0:00:32]} (26... fxe4 27. Qxe4 Qf7) 27. Nf6+ {[%emt 0:00:06]} Kf7 {[%emt 0:00:30]} 28. Nxe8 {[%emt 0:00:05]} Kxe8 {[%emt 0:00:27]} 29. Qxe6+ {[%emt 0:00:05]} Qe7 {[%emt 0:00:35]} 30. Qxg6+ {[%emt 0:00:58]} Kd8 {[%emt 0:00:30]} (30... Kd7 $142 31. Qxf5+ Kc7) 31. Bxc6 {[%emt 0:01:14]} Rg4 {[%emt 0:00:34]} 32. Rd1+ {[%emt 0:01:04]} Kc7 {[%emt 0:00:29]} 33. Qd6+ {[%emt 0:00:18]} Qxd6 {[%emt 0:00:24]} 34. cxd6+ {[%emt 0:00:04]} Kxc6 {[%emt 0:00:30][%mdl 4096] Endgame KRB-KR} 35. d7 {[%emt 0:00:04]} Rg8 {[%emt 0:00:27]} 36. d8=Q {[%emt 0:00:06]} Rxd8 {[%emt 0:00:07]} 37. Rxd8 {[%emt 0:00:05] KR-KB} Kc5 {[%emt 0:00:13]} 38. a3 {[%emt 0:00:16] [#] Hoping for Kf1.} Be4 {[%emt 0:00:08]} 39. Kf1 {[%emt 0:00:11] aiming for Ke2.} Kb5 {[%emt 0:00:13]} 40. Ke2 {[%emt 0:00:06]} Bc2 {[%emt 0:00:11]} 41. b4 {[%emt 0:00:03]} a4 {[%emt 0:00:13]} 42. Kd2 {[%emt 0:00:06]} Be4 {[%emt 0:00:42]} 43. Kc3 {[%emt 0:00:11] [#] Re8 would kill now.} Bf3 {[%emt 0:00:08]} 44. Rf8 {[%emt 0:00:04] White mates.} Be4 {[%emt 0:00:11]} 45. f3 {[%emt 0:00:03]} Bb1 {[%emt 0:00:29]} 46. g4 {[%emt 0:00:04]} fxg4 {[%emt 0:00:06]} 47. fxg4 {[%emt 0:00:04]} Be4 {[%emt 0:00:10]} 48. g5 {[%emt 0:00:03]} Bb1 {[%emt 0:00:06]} 49. Rb8+ {[%emt 0:00:08]} Ka6 {[%emt 0:00:08]} 50. b5+ {[%emt 0:00:04]} Ka5 {[%emt 0:00:15]} 51. b6 {[%emt 0:00:11]} Be4 {[%emt 0:00:19]} 52. Kd4 {[%emt 0:00:10]} Bb1 {[%emt 0:00:07]} 53. Kc5 {[%emt 0:00:07][%cal Rb8a8]} Be4 {[%emt 0:00:27]} 54. g6 {[%emt 0:00:07]} Ka6 {[%emt 0:00:05]} 55. g7 {[%emt 0:00:06]} Bh7 {[%emt 0:00:25]} 56. Ra8+ {[%emt 0:00:08]} Kb7 {[%emt 0:00:07]} 57. g8=Q {[%emt 0:00:06]} Bxg8 {[%emt 0:00:05]} 58. Rxg8 {[%emt 0:00:10]} Ka6 {[%emt 0:00:07]} 59. Rg7 {[%emt 0:00:06][%csl Gb6][%cal Rg7a7]} Ka5 {[%emt 0:00:05]} 60. Ra7# {[%emt 0:00:05] Weighted Error Value: White=0.14 (very precise) /Black=0.57} 1-0

[Event "34th MPL National U14-ch 2022"]
[Site "Ahmedabad"]
[Date "2022.05.09"]
[Round "1.4"]
[White "Kavin Oviyan R"]
[Black "Daakshin Arun"]
[Result "0-1"]
[ECO "D04"]
[WhiteElo "1299"]
[BlackElo "2016"]
[Annotator "TA"]
[PlyCount "48"]
[EventDate "2022.05.09"]
[EventType "swiss"]
[EventCountry "IND"]
[SourceTitle "playchess.com"]
[Source "ChessBase"]
[SourceQuality "1"]
[TimeControl "5400+30"]

{[%evp 17,48,0,0,0,10,-52,-53,-68,-32,-41,-35,-50,-29,-100,-25,-28,31,-146,-141,-151,-130,-183,-181,-179,-171,-667,-665,-777,-763,-1170,-559,-1095,-1031]} 1. Nf3 {[%emt 0:00:47]} Nf6 {[%emt 0:00:10]} 2. d4 {[%emt 0:00:27]} g6 {[%emt 0:00:06]} 3. Nbd2 {[%emt 0:02:11]} d5 {[%emt 0:00:08]} 4. b3 {[%emt 0:00:40]} Bg7 {[%emt 0:00:08]} 5. Bb2 {[%emt 0:00:20]} O-O {[%emt 0:00:07]} 6. e3 {[%emt 0:00:20]} Nbd7 {[%emt 0:00:56]} 7. Bd3 {[%emt 0:04:03]} c5 {[%emt 0:00:38]} 8. O-O {[%emt 0:00:45]} b6 {[%emt 0:01:33]} 9. c4 {[%emt 0:05:01]} Bb7 {[%emt 0:02:47]} 10. Qe2 {[%emt 0:02:58] D04: Colle System.} Re8 {[%emt 0:02:39] [#]} 11. e4 $146 {[%emt 0:14:26]} (11. Rad1 $11) ({Predecessor:} 11. Ne5 Nxe5 12. dxe5 Ne4 13. Rad1 Nxd2 14. Rxd2 e6 15. Rfd1 Qc7 16. f4 Rad8 17. Qf1 dxc4 18. Bxc4 Rxd2 19. Rxd2 {1-0 (102) Wlodarski,M (1932)-Choroszej,A (2078) Mrzezyno 2011}) 11... dxe4 $15 {[%emt 0:02:14]} 12. Nxe4 {[%emt 0:01:03] Black is slightly better.} cxd4 {[%emt 0:03:42]} (12... Nh5 $5 {[%cal Rh5f4]} 13. Qe3 f5 $15) 13. Bxd4 {[%emt 0:12:10]} e5 {[%emt 0:06:11]} 14. Bb2 {[%emt 0:02:45]} Nh5 {[%emt 0:03:50] White must now prevent ...Nf4.} 15. Bc2 {[%emt 0:13:39]} ({Much worse is} 15. Nd6 Nf4 16. Qd1 Nxd3 17. Qxd3 e4 18. Nxb7 exd3 $17) (15. Rad1 $11 {keeps the balance.}) 15... Qc7 {[%emt 0:07:04]} ({Better is} 15... Qe7 $17 {Strongly threatening ...f5.} 16. Rfd1 f5) 16. Rad1 $11 {[%emt 0:07:11]} f5 {[%emt 0:02:02]} (16... Bf8 $11) 17. Nc3 $2 {[%emt 0:01:26]} (17. Nd6 $14 {keeps the upper hand.}) 17... Nf4 $1 $36 {[%emt 0:04:53][%mdl 2048] Black has strong initiative.} 18. Qe3 {[%emt 0:07:59]} Bh6 {[%emt 0:01:36][%cal Of4h3] aiming for ...Nh3+!} 19. Nb5 {[%emt 0:00:19] [#]} (19. Ne1 $17) 19... Qd8 $1 $19 {[%emt 0:03:18][%cal Of4h3]} 20. Ne1 {[%emt 0:07:18] [#]} Qg5 $1 {[%emt 0:02:15][%cal Rb7g2]} 21. Rxd7 $2 {[%emt 0:01:40]} (21. Bc1 Bxg2 22. Qg3 Bxf1 23. Kxf1) 21... Bxg2 {[%emt 0:00:13] ( -> ...Bc6+). Black is clearly winning.} 22. Qg3 {[%emt 0:00:36] Hoping for Qxg5.} Bc6 {[%emt 0:02:53][%cal Rf4e2]} 23. h4 {[%emt 0:04:17]} Ne2+ {[%emt 0:00:21][%mdl 64] Pin, Double Attack} ({Less strong is} 23... Bxd7 24. hxg5 Ne2+ 25. Kh2 Nxg3 26. Kxg3 Bxb5 27. gxh6 $16) 24. Kh2 {[%emt 0:00:01]} Qh5 {[%emt 0:01:28] Weighted Error Value: White=1.13/Black=0.18 (very precise)} 0-1

[Event "34th MPL National U14-ch 2022"]
[Site "Ahmedabad"]
[Date "2022.05.09"]
[Round "1.5"]
[White "Mayank Chakraborty"]
[Black "Abbas Soni"]
[Result "1-0"]
[ECO "B23"]
[WhiteElo "2015"]
[BlackElo "1295"]
[Annotator "TA"]
[PlyCount "49"]
[EventDate "2022.05.09"]
[EventType "swiss"]
[EventCountry "IND"]
[SourceTitle "playchess.com"]
[Source "ChessBase"]
[SourceQuality "1"]
[TimeControl "5400+30"]

{[%evp 14,49,27,0,29,4,51,20,110,63,56,72,83,61,59,-4,116,112,183,176,191,181,260,288,338,262,386,383,406,406,397,397,369,346,309,281,816,793]} 1. e4 {[%emt 0:00:03]} c5 {[%emt 0:00:11]} 2. Nc3 {[%emt 0:00:05]} d6 {[%emt 0:00:12]} 3. f4 {[%emt 0:00:05]} Nc6 {[%emt 0:00:20]} 4. Nf3 {[%emt 0:00:06]} g6 {[%emt 0:00:42]} 5. Bb5 {[%emt 0:00:19]} Bd7 {[%emt 0:00:49]} 6. O-O {[%emt 0:00:14]} Bg7 {[%emt 0:00:19]} 7. d3 {[%emt 0:00:11]} e6 {[%emt 0:00:38]} 8. f5 {[%emt 0:01:15]} exf5 {[%emt 0:07:07] B23: Closed Sicilian: Lines without g3.} 9. Bg5 {[%emt 0:03:46] [#]} Bf6 $146 {[%emt 0:08:59]} (9... Nce7 $11) ({Predecessor:} 9... Nce7 10. Bxd7+ Qxd7 11. exf5 f6 12. Bf4 gxf5 13. Nh4 h5 14. Qf3 O-O-O 15. a4 a6 16. Rad1 {1-0 (35) Svanda,O (2061)-Novotny,J (1933) Klatovy 2017}) 10. Bf4 {[%emt 0:05:14]} Ne5 {[%emt 0:06:56] [#]} (10... Nd4 $11 11. Bxd7+ Qxd7) 11. exf5 {[%emt 0:01:13]} (11. Bxd7+ $1 $16 Qxd7 12. exf5) 11... Bxb5 $14 {[%emt 0:04:12]} 12. Nxb5 {[%emt 1:23:59]} Ne7 {[%emt 0:01:08]} 13. d4 {[%emt 0:00:00]} cxd4 {[%emt 0:05:55]} 14. fxg6 {[%emt 0:00:00]} (14. Nbxd4 Qb6 15. c3 O-O $11) (14. Nfxd4 $14 Qb6 15. Kh1) 14... N7xg6 {[%emt 0:09:45]} (14... hxg6 $11 {remains equal.} 15. Qe2 Rh5 16. Nfxd4 a6) 15. Nfxd4 $16 {[%emt 0:00:00] And now Be3 would win.} O-O {[%emt 0:04:11]} (15... Nxf4 $16 {was worth a try.} 16. Rxf4 O-O) 16. Bh6 $18 {[%emt 0:00:00]} Re8 {[%emt 0:00:08]} 17. Kh1 {[%emt 0:00:00]} Be7 {[%emt 0:06:02]} (17... d5 $142 18. Qh5 Nc4) 18. Nf5 {[%emt 0:00:00]} Qb6 {[%emt 0:05:14]} 19. Qd5 {[%emt 0:00:00]} ({Wrong is} 19. Nfxd6 $2 Rad8 20. Bg5 Bxg5 $19) ({Inferior is} 19. Nbxd6 Red8 $14) 19... Qc6 {[%emt 0:05:42]} (19... Rac8 {was called for.} 20. Be3 (20. Nfxd6 Rc5 $15) 20... Qc6) 20. Qxc6 {[%emt 0:00:00]} bxc6 {[%emt 0:00:09]} 21. Nc7 {[%emt 0:00:00]} Rac8 {[%emt 0:00:19]} 22. Nxe8 {[%emt 0:00:00]} Rxe8 {[%emt 0:00:04]} 23. Rad1 {[%emt 0:00:00]} d5 {[%emt 0:00:09]} 24. Be3 {[%emt 0:00:00]} Nc4 $2 {[%emt 0:00:54] [#]} (24... Bf8 25. Bxa7 Ra8) 25. Nh6+ {[%emt 0:00:00] Weighted Error Value: White=0.23 (precise) /Black=0.51} 1-0